bitfinex-derivatives/quotes_ETHF0:USTF0_20250309
["timestamp","ask_amount","ask_price","bid_price","bid_amount"]
[1741539125495,0.96631,2070.1,2069.9,3.2078]
[1741539125705,2.9,2070.5,2069.9,3.2078]
[1741539126010,0.96625,2070.3,2069.9,4.17417]
[1741539126200,0.9662,2070.4,2070.0,0.96634]
[1741539126403,2.896,2070.6,2069.9,3.2078]
[1741539126903,6.1038,2070.6,2069.9,3.2078]
[1741539127127,0.96635,2070.0,2069.9,3.2078]
[1741539127307,0.96649,2069.7,2069.6,3.2078]
[1741539127909,0.96643,2069.9,2069.6,4.17433]
[1741539128112,0.96639,2070.0,2069.6,4.17431]
[1741539128305,2.892,2070.1,2069.9,3.2078]
[1741539128605,0.96657,2069.6,2069.5,3.2078]
[1741539129307,0.96668,2069.3,2069.2,3.21506234]
[1741539129514,6.0928,2069.7,2069.2,3.21506234]
[1741539129709,0.96666,2069.4,2069.2,44.01506234]
[1741539129900,0.96668,2069.3,2069.2,44.01506234]
[1741539130407,0.96668,2069.3,2069.2,0.00726234]
[1741539130911,3.84568,2069.3,2069.2,2.34e-06]
[1741539131105,0.96702,2068.6,2068.3,2.949]
[1741539131304,2.41715,2069.0,2068.3,2.949]
[1741539131500,0.9671,2068.5,2068.4,40.8]
[1741539131708,0.96722,2068.2,2067.9,3.2078]
[1741539131905,0.96716,2068.3,2067.9,4.1751]
[1741539132111,0.96715,2068.3,2068.2,3.2078]
[1741539132415,0.96729,2068.0,2067.9,0.00726234]
[1741539132604,0.96747,2067.6,2067.5,3.2078]
[1741539132909,2.885,2067.6,2067.0,3.2078]
[1741539133315,0.9676,2067.4,2067.0,3.2078]
[1741539133511,3.2078,2067.7,2067.0,3.2078]
[1741539133821,3.21506234,2068.3,2067.5,3.2078]
[1741539134113,3.21506234,2068.3,2068.0,0.96728]
[1741539134313,0.96731,2068.0,2067.8,3.2078]
[1741539134515,2.886,2067.9,2067.5,2.949]
[1741539134817,0.96747,2067.7,2067.2,4.17543]
[1741539135018,2.886,2067.9,2067.2,4.17543]
[1741539135210,0.96761,2067.3,2067.2,3.2078]
[1741539135512,3.2078,2067.7,2067.2,3.2078]
[1741539135812,3.2078,2067.7,2066.9,7.3052]
[1741539136116,0.96766,2067.2,2066.9,7.3052]
[1741539136510,3.2078,2067.0,2065.2,3.2078]
[1741539136712,3.2078,2065.7,2064.8,2.42186]
[1741539137008,3.2078,2065.7,2064.9,40.8]
[1741539137009,2.956,2065.6,2064.9,40.8]
[1741539137211,2.956,2065.6,2065.5,0.96846]
[1741539137511,2.956,2065.6,2065.0,3.20783305]
[1741539137722,3.2078,2065.4,2065.1,3.20783305]
[1741539138020,0.9686,2065.2,2065.1,3.21509539]
[1741539139016,0.9686,2065.2,2065.1,0.00726234]
[1741539139314,3.9206,2065.2,2065.1,0.00726234]
[1741539139518,3.9206,2065.2,2065.1,2.34e-06]
[1741539139713,3.20779766,2065.0,2063.4,6.1568]
[1741539140011,3.2078,2064.0,2063.7,3.20783305]
[1741539140216,3.95025,2063.9,2063.8,0.5]
[1741539140418,2.985,2063.9,2062.9,3.20783305]
[1741539140604,3.2078,2063.1,2062.9,3.20783305]
[1741539140915,3.2078,2063.2,2062.0,0.00560143]
[1741539141212,3.2078,2062.7,2062.1,4.17787305]
[1741539141415,3.2078,2063.0,2062.4,0.00726234]
[1741539141606,6.2988,2063.0,2062.5,3.2078]
[1741539141807,3.2078,2063.0,2062.5,3.20783305]
[1741539142115,0.97663234,2063.6,2062.8,3.2078]
[1741539142116,6.3058,2063.3,2062.8,3.2078]
[1741539142311,3.104,2063.5,2063.1,3.2078]
[1741539142511,3.104,2063.5,2063.2,3.20783305]
[1741539142818,6.3118,2063.5,2062.4,0.00726234]
[1741539143015,4.17745,2063.0,2062.5,3.20783305]
[1741539143313,3.104,2063.5,2062.5,3.20783305]
[1741539143314,3.2078,2063.5,2062.7,3.2078]
[1741539143611,0.00726234,2063.6,2063.3,3.2078]
[1741539143817,3.12,2064.2,2063.3,3.2078]
[1741539144017,4.08907,2064.2,2063.7,3.2078]
[1741539144208,0.96912,2064.1,2063.7,3.2078]
[1741539144409,3.2078,2064.0,2063.8,3.20783305]
[1741539144614,3.2078,2063.9,2063.8,3.20783305]
[1741539144811,3.129,2064.7,2064.5,0.96889]
[1741539145020,0.71214786,2065.0,2064.6,3.20783305]
[1741539145213,3.129,2065.5,2064.9,3.2078]
[1741539145413,3.21506234,2065.0,2064.7,3.20783305]
[1741539145713,3.2078,2066.3,2065.0,2.42174]
[1741539145909,3.2078,2066.0,2064.9,3.2078]
[1741539146117,3.2078,2066.1,2065.2,3.2078]
[1741539146417,0.96831,2065.9,2065.8,40.8]
[1741539146718,6.3518,2066.2,2065.8,43.51980864]
[1741539146910,0.48799136,2066.6,2066.1,3.2078]
[1741539147215,3.2078,2066.4,2065.8,40.8]
[1741539147523,3.155,2066.3,2065.8,40.8]
[1741539148219,0.96827,2065.9,2065.8,40.8]
[1741539148422,0.96836,2065.7,2065.6,0.00726234]
[1741539148718,3.2078,2066.1,2065.6,0.00726234]
[1741539148914,4.17616,2065.7,2065.6,0.00726234]
[1741539149221,0.96853,2065.4,2064.2,2.42267]
[1741539149423,3.2078,2065.7,2061.2,24.518]
[1741539149613,3.2078,2061.3,2060.0,3.2078]
[1741539149810,0.97118,2059.7,2059.6,18.77115527]
[1741539150007,3.2078,2060.0,2059.6,18.77115527]
[1741539150217,0.97114,2059.8,2059.6,18.77115527]
[1741539150515,4.17898,2059.7,2059.6,0.27146144]
[1741539150714,8.47480177,2059.7,2058.1,156.29874896]
[1741539150919,3.2078,2057.8,2054.8,53.04504283]
[1741539151116,4.18045,2056.6,2056.5,12.26577065]
[1741539151420,3.2078,2057.1,2056.6,14.96287979]
[1741539151614,3.2078,2057.1,2056.5,4.61524355]
[1741539151811,3.2078,2056.8,2056.5,7.82304355]
[1741539152121,0.00728279,2057.0,2056.6,34.40176258]
[1741539152312,0.00728279,2057.0,2056.8,3.2078]
[1741539152509,3.2078,2058.0,2056.9,20.4032]
[1741539152510,4.1798,2058.0,2056.9,20.4032]
[1741539152716,3.2078,2058.6,2057.6,3.2078]
[1741539152920,3.2078,2058.6,2057.6,21.752]
[1741539153120,4.756,2059.5,2058.3,3.2078]
[1741539153121,3.2078,2059.0,2058.3,3.2078]
[1741539153309,3.2078,2058.4,2057.0,9.60757986]
[1741539153516,3.2078,2058.4,2056.7,19.85630244]
[1741539153517,3.2078,2056.5,2054.7,3.2078]
[1741539153819,8.79173663,2057.6,2054.6,3.2078]
[1741539153820,0.97319,2055.5,2054.6,3.2078]
[1741539154010,5.011,2055.4,2055.0,0.9716]
[1741539154313,4.18097,2055.5,2055.4,2.79e-06]
[1741539154517,3.2078,2055.3,2053.9,3.2078]
[1741539154716,6.1928,2055.2,2054.7,0.9716]
[1741539154916,6.1928,2055.2,2053.8,20.30847979]
[1741539154917,2.985,2055.1,2054.9,22.63211721]
[1741539155119,2.99228279,2055.4,2055.3,20.39591721]
[1741539155426,2.985,2055.4,2055.3,22.63211721]
[1741539155717,3.2078,2054.7,2052.1,3.2078]
[1741539155915,11.88625312,2055.0,2052.1,23.04011915]
[1741539155916,3.2078,2053.2,2052.1,23.04011915]
[1741539156118,3.2078,2052.9,2052.0,0.00581035]
[1741539156322,3.2078,2052.5,2051.8,40.8]
[1741539156517,13.276,2052.4,2052.2,6.9e-07]
[1741539156718,13.276,2052.4,2050.5,0.488]
[1741539156719,6.1928,2052.3,2051.1,3.2078]
[1741539156922,2.985,2052.2,2052.0,3.2078]
[1741539157119,16.6698,2052.1,2050.3,3.2078]
[1741539157330,3.2078,2050.4,2049.7,3.2078]
[1741539157623,3.2078,2049.8,2047.9,3.2078]
[1741539157817,7.875,2049.7,2049.0,7.11638818]
[1741539158015,7.875,2049.6,2048.7,3.2078]
[1741539158216,4.89,2049.5,2048.5,3.2078]
[1741539158420,4.89,2049.5,2047.8,19.82127979]
[1741539158421,2.985,2049.4,2048.8,3.2078]
[1741539158617,3.2078,2049.1,2047.7,44.0078]
[1741539158926,3.2078,2049.1,2043.4,21.804]
[1741539158927,7.38776555,2049.0,2043.4,21.804]
[1741539159123,3.2078,2045.0,2044.2,3.2078]
[1741539159325,3.2078,2044.4,2042.8,3.2078]
[1741539159625,2.985,2044.3,2043.6,0.16310309]
[1741539159833,4.25434885,2044.2,2043.4,0.00734035]
[1741539160125,3.2078,2043.6,2042.2,21.804]
[1741539160323,2.46e-06,2043.5,2043.4,7.11638818]
[1741539160519,4.89,2045.0,2043.6,7.11638818]
[1741539160721,4.89,2045.0,2043.4,25.0618]
[1741539160722,1.05771717,2044.3,2043.5,29.95788853]
[1741539160922,3.2078,2045.4,2044.2,3.2078]
[1741539161116,3.2078,2046.6,2045.3,10.32418818]
[1741539161322,3.2078,2049.2,2046.9,3.2078]
[1741539161621,154.263,2053.7,2046.9,3.2078]
[1741539161622,3.2078,2050.4,2049.1,3.2078]
[1741539161822,3.2078,2051.8,2050.3,3.2078]
[1741539162025,3.2078,2052.2,2051.4,3.2078]
[1741539162326,5.32732112,2050.3,2050.0,3.2078]
[1741539162523,3.2078,2051.6,2050.1,26.66315946]
[1741539162725,0.09746113,2052.1,2050.8,3.2078]
[1741539162922,3.2078,2051.2,2050.0,3.2078]
[1741539163121,3.2078,2051.8,2050.4,3.2078]
[1741539163323,0.31131153,2052.1,2051.5,3.2078]
[1741539163626,3.2078,2051.8,2050.9,3.21512207]
[1741539163824,0.00732207,2052.0,2051.7,3.2078]
[1741539164027,0.00732207,2052.0,2051.4,3.2078]
[1741539164324,5.27526969,2051.7,2050.9,3.2078]
[1741539164525,0.00732207,2052.0,2051.5,0.00732207]
[1741539164825,5.4653543,2051.6,2051.2,26.66315946]
[1741539165026,0.00732207,2052.0,2051.5,0.97507]
[1741539165228,0.00732207,2052.0,2051.7,3.2078]
[1741539165430,8.60420658,2051.9,2050.5,3.2078]
[1741539165627,3.2078,2051.4,2050.1,3.2078]
[1741539165834,0.00732207,2052.0,2049.7,3.2078]
[1741539165835,3.2078,2050.6,2049.7,3.2078]
[1741539166127,5.54120658,2051.3,2050.3,3.2078]
[1741539166429,6.2708,2051.2,2050.2,3.2078]
[1741539166627,0.00732207,2051.0,2050.3,3.2078]
[1741539166828,0.00732207,2051.0,2050.9,13.67332884]
[1741539167028,0.65300062,2051.5,2051.2,13.67332884]
[1741539167223,0.65300062,2051.5,2051.4,3.2078]
[1741539167525,0.65300062,2052.7,2051.4,3.2078]
[1741539167826,0.65300062,2052.7,2052.4,4.1824]
[1741539168027,3.2078,2053.5,2052.5,22.84659]
[1741539168028,0.7616598,2052.6,2052.5,22.84659]
[1741539168225,1.52331961,2053.2,2052.7,13.67332884]
[1741539168426,1.52331961,2053.2,2053.1,16.88112884]
[1741539168624,3.2078,2054.8,2053.4,16.88112884]
[1741539168825,286.276,2064.1,2053.0,0.04571036]
[1741539168826,3.2078,2054.5,2054.1,3.2078]
[1741539169030,3.2078,2054.5,2054.4,13.67332884]
[1741539169334,3.2078,2055.5,2054.4,16.88112884]
[1741539169523,0.00730229,2054.7,2054.3,1.16541648]
[1741539169724,3.2078,2054.4,2052.6,3.2078]
[1741539170030,3.2078,2052.8,2051.8,10.67597935]
[1741539170234,6.048,2054.3,2049.1,7.938]
[1741539170235,3.2078,2052.1,2050.6,33.19974106]
[1741539170527,3.063,2052.7,2051.0,3.2078]
[1741539170528,3.2078,2051.8,2051.0,3.2078]
[1741539170735,3.2078,2051.5,2050.3,3.2078]
[1741539170932,3.2078,2050.4,2049.5,21.869]
[1741539171230,3.2078,2050.5,2049.6,3.2078]
[1741539171426,3.2078,2050.3,2049.7,0.00730229]
[1741539171627,3.2078,2050.0,2049.5,21.869]
[1741539171828,0.00730229,2050.3,2050.2,0.97569]
[1741539172134,0.00730229,2050.3,2049.5,21.869]
[1741539172327,3.2078,2049.7,2048.7,21.869]
[1741539172527,3.2078,2048.8,2047.2,21.877]
[1741539172724,1.85737,2047.6,2047.1,3.2078]
[1741539172930,3.2078,2048.5,2047.5,3.2078]
[1741539173231,3.2078,2048.6,2047.8,0.00732064]
[1741539173531,7.26046117,2049.4,2049.0,0.97623]
[1741539173728,2.13316574,2049.3,2048.7,21.877]
[1741539173919,3.2078,2050.2,2049.2,3.2078]
[1741539174119,3.2078,2050.2,2049.0,2.44793064]
[1741539174120,3.2078,2051.1,2050.7,0.97545]
[1741539174431,3.2078,2051.1,2050.6,21.877]
[1741539174626,3.2078,2051.7,2051.6,0.97502]
[1741539174825,3.2078,2052.4,2052.3,0.97469]
[1741539175026,3.2078,2053.2,2052.3,3.25805399]
[1741539175227,3.2078,2052.9,2052.3,3.25805399]
[1741539175532,3.2078,2052.9,2052.7,0.9745]
[1741539175830,3.2078,2053.7,2052.8,3.2078]
[1741539176036,3.2078,2054.0,2053.4,3.2078]
[1741539176227,0.00732064,2053.5,2053.2,0.05025399]
[1741539176628,3.2078,2054.0,2053.4,0.97416]
[1741539176824,4.67846082,2055.4,2053.9,3.2078]
[1741539176825,3.2078,2054.4,2053.9,3.2078]
[1741539177130,3.2078,2054.4,2053.1,21.88630265]
[1741539177131,7.88e-06,2054.3,2054.2,4.18159]
[1741539177433,7.88e-06,2054.3,2054.2,22.85279]
[1741539177834,4.87e-06,2054.5,2054.4,0.97369]
[1741539178029,3.2078,2055.2,2055.1,0.97336]
[1741539178333,3.2078,2055.5,2055.4,0.97322]
[1741539178529,3.2078,2056.0,2055.7,0.97304]
[1741539178732,0.00730265,2055.7,2055.4,3.2078]
[1741539179034,2.65e-06,2055.7,2055.6,0.98042265]
[1741539179238,0.13881703,2055.9,2055.6,3.2078]
[1741539179532,3.2078,2056.0,2055.3,10.21941323]
[1741539179832,0.70552,2056.0,2055.9,0.95838205]
[1741539180137,3.2078,2056.6,2055.7,3.2078]
[1741539180538,0.00730265,2056.4,2056.3,0.97279]
[1741539180740,0.66167108,2056.5,2056.4,0.97274]
[1741539181038,3.2078,2057.0,2056.4,21.87]
[1741539181232,3.2078,2057.4,2056.4,25.0778]
[1741539181434,3.2078,2057.4,2056.8,3.2078]
[1741539181633,3.2078,2057.4,2057.1,3.2078]
[1741539181833,3.2078,2057.8,2057.1,3.2078]
[1741539182033,0.00730265,2057.5,2057.0,0.00730265]
[1741539182234,0.00730265,2057.5,2057.3,3.2078]
[1741539182428,3.2078,2057.4,2057.0,0.00730265]
[1741539182634,3.2078,2057.1,2056.4,21.87]
[1741539182836,3.2078,2057.1,2056.4,25.0778]
[1741539183131,3.2078,2057.1,2057.0,0.97246]
[1741539183339,0.69743667,2056.9,2056.4,21.87]
[1741539183534,3.2078,2056.8,2056.4,21.87]
[1741539183842,3.2078,2056.8,2056.4,21.87730265]
[1741539184031,0.69743667,2056.8,2056.6,3.2078]
[1741539184345,3.21510265,2057.5,2057.4,0.97227]
[1741539184537,0.00730265,2057.5,2057.4,0.97227]
[1741539184738,6.67e-06,2057.5,2057.4,30.02807]
[1741539185340,3.2078,2054.8,2052.8,3.2078]
[1741539185640,3.2078,2054.8,2050.9,24.518]
[1741539185641,3.2078,2052.9,2051.0,4.0679]
[1741539185836,2.4356,2053.3,2051.0,4.0679]
[1741539185837,3.2078,2051.9,2051.0,4.0679]
[1741539186140,3.2078,2051.6,2051.0,4.0679]
[1741539186338,3.2078,2051.3,2051.0,4.0679]
[1741539186538,3.2078,2051.3,2049.1,2.44052]
[1741539186539,3.2078,2051.3,2051.1,0.00730265]
[1741539186737,2.18544,2051.3,2051.2,0.97521]
[1741539187042,7.2078,2051.3,2049.8,21.848]
[1741539187341,3.2078,2051.1,2050.7,0.97541]
[1741539187536,3.2078,2050.8,2049.8,21.848]
[1741539187740,2.94597427,2050.6,2050.5,0.97554]
[1741539187937,3.2078,2051.5,2050.5,3.2078]
[1741539188246,3.2078,2052.3,2052.2,0.97473]
[1741539188438,1.80306818,2052.6,2052.2,0.97473]
[1741539188439,0.25428521,2052.6,2052.5,0.97459]
[1741539188647,3.2078,2053.5,2053.4,0.97416]
[1741539188947,8.09031,2056.1,2053.4,3.2078]
[1741539188948,3.2078,2053.9,2053.4,3.2078]
[1741539189238,0.00730265,2053.7,2053.3,0.24257952]
[1741539189642,3.2078,2053.4,2052.3,3.2078]
[1741539189835,3.2078,2052.7,2052.1,3.2078]
[1741539190037,3.2078,2052.7,2051.5,25.9074]
[1741539190243,3.2078,2052.7,2050.9,4.18311]
[1741539190244,3.2078,2051.6,2050.9,4.18311]
[1741539190542,3.2078,2051.6,2050.6,21.95553242]
[1741539190543,3.2078,2051.0,2050.3,3.2078]
[1741539190849,3.2078,2051.1,2050.6,3.2078]
[1741539191040,3.2078,2051.4,2050.6,3.2078]
[1741539191347,3.2078,2050.7,2050.4,0.00730265]
[1741539191545,0.00730265,2051.1,2049.6,4.1368]
[1741539191546,3.2078,2050.4,2049.6,4.1368]
[1741539191744,3.2078,2050.2,2049.7,3.2078]
[1741539191946,3.2078,2050.2,2050.1,0.97573]
[1741539192244,7.26e-06,2050.3,2050.2,0.97569]
[1741539192642,7.36e-06,2050.4,2050.3,0.97564]
[1741539192838,3.2078,2051.8,2051.0,0.9753]
[1741539193047,3.2078,2052.5,2051.6,3.2078]
[1741539193255,0.01461566,2053.4,2051.1,24.29611]
[1741539193256,3.2078,2052.8,2052.2,3.2078]
[1741539193444,0.57410111,2052.4,2052.3,0.97469]
[1741539193645,0.57410111,2052.4,2051.3,21.866]
[1741539193945,3.2078,2051.6,2051.3,21.866]
[1741539194143,3.2078,2051.9,2051.3,21.866]
[1741539194339,0.00730265,2052.1,2051.6,0.00730265]
[1741539194655,2.65e-06,2052.1,2052.0,4.18263]
[1741539195044,3.2078,2053.5,2052.0,4.18263]
[1741539195245,3.2078,2053.8,2053.0,3.2078]
[1741539195443,3.2078,2054.4,2053.1,21.866]
[1741539195643,3.2078,2054.4,2053.9,3.2078]
[1741539195949,3.2078,2054.3,2053.2,4.1056]
[1741539196152,3.2078,2054.3,2054.2,0.97379]
[1741539196353,6.89210161,2055.2,2054.2,21.861]
[1741539196649,3.2078,2054.8,2054.2,21.861]
[1741539197044,3.2078,2055.1,2054.2,26.66657073]
[1741539197245,6.89210161,2055.2,2054.9,0.04748608]
[1741539197549,3.2078,2049.0,2047.3,3.2078]
[1741539197746,3.2078,2046.0,2044.7,4.0871]
[1741539197941,2.44245,2047.5,2044.7,0.30617702]
[1741539198140,2.97326,2045.8,2045.5,3.2078]
[1741539198344,2.97326,2045.8,2044.2,2.44627]
[1741539198345,3.2078,2046.0,2045.0,3.2078]
[1741539198650,3.2078,2045.9,2045.4,0.00732368]
[1741539198845,3.2078,2046.4,2045.6,3.57911458]
[1741539199053,3.2078,2046.2,2045.1,22.3498]
[1741539199245,4.2393,2048.8,2045.1,21.861]
[1741539199246,3.2078,2045.3,2045.1,21.861]
[1741539199442,3.2078,2045.9,2045.0,36.43130104]
[1741539199743,3.2078,2045.7,2045.0,36.43130104]
[1741539199947,3.2078,2046.1,2045.3,0.05029238]
[1741539200142,3.2078,2046.6,2045.8,3.2078]
[1741539200352,3.2078,2046.9,2045.8,3.2078]
[1741539200655,0.00732368,2046.4,2045.9,6.27491364]
[1741539200842,3.2078,2046.0,2045.4,19.47977073]
[1741539201047,0.97749,2046.5,2045.9,0.00732368]
[1741539201248,3.384,2047.5,2045.9,0.00732368]
[1741539201249,3.2078,2046.0,2045.9,0.00732368]
[1741539201655,3.2078,2047.0,2045.9,7.21512368]
[1741539201859,3.2078,2047.0,2046.4,3.2078]
[1741539202050,3.2078,2047.2,2046.7,0.05029238]
[1741539202250,3.2078,2047.6,2047.2,0.97707]
[1741539202545,3.2078,2047.3,2046.7,0.05029238]
[1741539202750,3.2078,2047.6,2047.0,3.2078]
[1741539202949,3.2078,2047.9,2047.4,3.2078]
[1741539203153,3.2078,2047.7,2047.0,3.2078]
[1741539203354,3.2078,2047.3,2046.8,9.50764469]
[1741539203653,3.2078,2048.3,2047.2,3.2078]
[1741539203852,3.2078,2049.4,2049.2,0.97614]
[1741539204150,3.2078,2049.3,2048.3,21.896]
[1741539204356,5.61740368,2049.7,2047.8,14.57063317]
[1741539204357,3.2078,2048.6,2047.8,14.57063317]
[1741539204547,3.2078,2048.6,2048.1,3.2078]
[1741539204749,3.2078,2048.9,2048.7,0.97637]
[1741539204949,3.2078,2049.5,2048.8,3.2078]
[1741539205264,0.00732368,2049.0,2048.9,22.8763]
[1741539205454,3.68e-06,2049.0,2048.9,22.8763]
[1741539205756,3.68e-06,2049.0,2048.9,30.0841]
[1741539205951,3.2078,2049.8,2048.9,29.5966]
[1741539206152,3.2078,2049.8,2048.9,22.70557073]
[1741539206454,0.97617,2049.2,2048.9,19.49777073]
[1741539206659,3.2078,2049.0,2048.9,19.49777073]
[1741539206851,3.384,2048.9,2047.3,0.09768964]
[1741539207047,3.2078,2047.4,2046.9,0.97726]
[1741539207253,3.2078,2047.8,2046.8,25.1078]
[1741539207451,3.2078,2047.3,2046.9,0.00732368]
[1741539207658,3.2078,2047.4,2046.9,0.00732368]
[1741539207857,3.2078,2047.7,2046.9,0.00732368]
[1741539208154,3.2078,2047.8,2047.0,9.52071249]
[1741539208359,3.2078,2047.9,2047.0,6.31291249]
[1741539208559,3.2078,2048.2,2047.5,3.2078]
[1741539208760,3.2078,2048.7,2048.4,0.97654]
[1741539208962,3.2078,2048.7,2048.4,0.97653]
[1741539209154,1.90184404,2048.6,2047.6,6.3922601]
[1741539209353,3.2078,2048.2,2047.6,3.99003083]
[1741539209554,3.2078,2048.2,2047.6,7.19783083]
[1741539209760,3.2078,2048.1,2047.7,0.97687]
[1741539209954,3.2078,2048.1,2047.7,0.00732368]
[1741539210151,3.2078,2047.8,2046.5,25.1138]
[1741539210352,3.2078,2047.2,2046.5,21.906]
[1741539210558,3.2078,2047.0,2046.8,0.97727]
[1741539210762,3.2078,2047.0,2045.6,21.906]
[1741539210960,3.2078,2045.7,2045.6,21.906]
[1741539211351,0.00732368,2045.9,2045.7,0.97781]
[1741539211553,0.00732368,2045.9,2045.6,21.906]
[1741539211857,0.00732368,2045.9,2045.8,0.97778]
[1741539212057,3.2078,2046.7,2045.8,4.97778]
[1741539212260,3.2078,2047.1,2047.0,0.97718]
[1741539212459,3.2078,2047.3,2047.0,21.912]
[1741539212664,3.2078,2047.1,2047.0,21.912]
[1741539212863,3.2078,2047.7,2047.6,0.97692]
[1741539213065,3.2078,2048.2,2047.2,3.2078]
[1741539213357,3.2078,2048.2,2047.6,3.2078]
[1741539213759,3.2078,2048.2,2047.4,0.00732368]
[1741539213760,3.2078,2048.2,2048.1,0.97669]
[1741539214063,3.2078,2049.1,2048.1,21.912]
[1741539214362,3.2078,2049.1,2048.6,3.2078]
[1741539214655,5.10964772,2049.0,2048.4,0.00732368]
[1741539214858,4.18429,2048.5,2048.4,3.68e-06]
[1741539215158,0.97712,2047.2,2046.9,21.912]
[1741539215360,3.2078,2047.4,2046.9,20.12699102]
[1741539215564,3.2078,2047.1,2046.9,20.12699102]
[1741539216056,3.2078,2047.4,2046.9,20.12699102]
[1741539216255,0.00732368,2047.2,2046.9,21.10422102]
[1741539216454,0.00732368,2047.2,2047.1,0.97716]
[1741539216662,3.2078,2048.5,2048.2,0.97663]
[1741539216958,3.2078,2048.5,2048.0,21.912]
[1741539217165,1.90184404,2048.4,2048.1,21.912]
[1741539217356,5.10964404,2048.4,2048.1,21.912]
[1741539217553,3.2078,2048.2,2045.4,4.1358]
[1741539217758,3.2078,2047.2,2045.9,29.361]
[1741539218063,3.2078,2046.9,2046.8,0.97731]
[1741539218358,3.2078,2046.9,2046.3,0.00732368]
[1741539218554,3.2078,2046.4,2046.3,0.00732368]
[1741539218759,4.1853,2046.4,2046.3,0.00732368]
[1741539218955,3.2078,2046.4,2045.9,21.915]
[1741539219154,3.2078,2046.1,2046.0,0.97769]
[1741539219360,3.384,2047.4,2046.2,0.97759]
[1741539219361,3.2078,2046.4,2046.2,0.97759]
[1741539219551,3.2078,2046.4,2045.9,21.915]
[1741539219854,3.2078,2046.8,2045.9,21.915]
[1741539220054,3.2078,2046.2,2045.9,21.92232368]
[1741539220257,3.2078,2046.0,2045.0,21.92]
[1741539220451,3.2078,2045.4,2045.0,21.92]
[1741539220652,3.2078,2045.4,2045.3,0.97802]
[1741539220864,0.00732368,2046.4,2045.8,0.97776]
[1741539221059,3.2078,2046.2,2045.2,5.65298]
[1741539221260,3.2078,2045.5,2045.0,21.92]
[1741539221767,3.2078,2045.5,2045.2,3.2078]
[1741539221960,0.00732368,2046.4,2045.2,3.2078]
[1741539222165,0.00732368,2046.4,2046.3,0.97754]
[1741539222365,3.2078,2047.1,2047.0,0.97721]
[1741539222566,3.2078,2047.4,2046.4,3.2078]
[1741539222761,3.2078,2047.7,2047.6,0.97692]
[1741539222956,0.70757149,2048.3,2047.6,25.92]
[1741539223158,3.2078,2048.4,2048.2,0.97662]
[1741539223464,3.2078,2048.7,2048.0,3.2078]
[1741539223659,0.00732368,2048.5,2048.3,3.2078]
[1741539223867,0.00732368,2048.5,2048.4,0.97654]
[1741539224165,0.97661,2048.3,2048.1,0.00732368]
[1741539224369,0.00732368,2048.5,2048.1,0.00732368]
[1741539224569,0.00732368,2048.5,2048.4,0.97654]
[1741539225072,3.2078,2048.9,2048.3,3.2078]
[1741539225267,3.2078,2048.4,2048.1,0.00732368]
[1741539225568,3.2078,2048.7,2048.1,0.00732368]
[1741539225871,3.2078,2048.7,2048.3,0.97658]
[1741539226075,3.2078,2048.7,2048.1,0.00732368]
[1741539226460,4.18423,2048.7,2048.2,4.18442]
[1741539226660,3.2078,2048.4,2048.1,0.00732368]
[1741539226866,0.6924595,2048.3,2047.9,21.921]
[1741539227072,4.18453,2048.0,2047.9,11.60832369]
[1741539227271,5.53862242,2048.0,2047.9,11.60832369]
[1741539227464,4.56189242,2048.0,2047.9,12.58510369]
[1741539227669,2.21932964,2048.0,2047.9,11.60832369]
[1741539227871,2.21932964,2048.0,2047.9,12.58510369]
[1741539228061,0.00732368,2048.5,2047.9,15.60832369]
[1741539228262,0.69905456,2048.4,2048.3,0.97657]
[1741539228465,3.68e-06,2048.5,2048.4,0.97654]
[1741539228672,0.72295667,2048.8,2048.3,4.0]
[1741539228673,0.72295667,2048.8,2048.3,7.2078]
[1741539228862,3.2078,2049.8,2048.6,3.2078]
[1741539229068,3.2078,2049.5,2048.6,3.2078]
[1741539229369,4.18379,2049.6,2048.6,3.2078]
[1741539229575,4.18379,2049.6,2049.3,0.97611]
[1741539229576,0.44301595,2049.4,2049.3,0.97611]
[1741539229764,0.44301595,2049.4,2049.3,22.89011]
[1741539229963,0.44301595,2049.4,2049.3,26.89011]
[1741539230170,3.2078,2049.9,2049.3,25.914]
[1741539230368,3.2078,2049.9,2049.7,0.9759]
[1741539230569,3.2078,2050.5,2049.4,5.64797]
[1741539230770,3.2078,2050.5,2050.4,0.97559]
[1741539230969,0.72292709,2051.3,2050.4,21.914]
[1741539230970,3.2078,2050.7,2050.4,21.914]
[1741539231172,4.18327,2050.7,2050.4,21.914]
[1741539231469,3.2078,2050.7,2050.4,21.914]
[1741539231675,4.18326,2050.7,2050.4,21.914]
[1741539231864,0.97554,2050.5,2050.4,11.66648542]
[1741539232070,4.18326,2050.7,2050.4,11.66648542]
[1741539232284,0.97554,2050.5,2050.4,11.66648542]
[1741539232478,0.97552,2050.6,2050.4,11.66648542]
[1741539232681,3.2078,2050.7,2050.4,11.66648542]
[1741539232883,0.97548,2050.7,2050.4,11.66648542]
[1741539233187,3.2078,2051.1,2050.4,11.66648542]
[1741539233388,0.97554,2050.5,2050.4,11.66648542]
[1741539233686,3.2078,2050.8,2050.4,11.66648542]
[1741539233882,0.97554,2050.5,2050.4,11.66648542]
[1741539234180,3.2078,2050.8,2050.4,11.66648542]
[1741539234384,3.2078,2051.3,2050.4,14.87428542]
[1741539234577,3.2078,2051.3,2050.4,11.66648542]
[1741539234778,3.2078,2051.3,2050.7,0.97541]
[1741539234978,3.2078,2051.3,2050.4,11.66648542]
[1741539235187,3.2078,2051.3,2050.4,7.27688251]
[1741539235573,3.2078,2050.9,2050.4,7.27688251]
[1741539235779,0.97535,2050.9,2050.5,0.97551]
[1741539236285,0.97554,2050.5,2050.4,7.27688251]